fUSD/lending_fUSD_20260422
["ID","MTS","AMOUNT","RATE_DAILY","PERIOD"]
[420969288,1776826231769,-802.49139687,9.05e-05,2]
[420969289,1776826231780,-1311.85310313,9.05e-05,2]
[420969290,1776826231790,-1200.0,9.149e-05,2]
[420969291,1776826231799,-933.06294406,9.15e-05,2]
[420969292,1776826231810,-14140.82705594,9.15e-05,2]
[420969293,1776826231819,-1500.0,9.794e-05,2]
[420969294,1776826231828,-521.38518169,9.855e-05,2]
[420969295,1776826231838,-160.0,9.988e-05,2]
[420969296,1776826231847,-892.0,0.00010064,2]
[420969297,1776826231856,-160.23,0.00010147,2]
[420969298,1776826231866,-1600.0,0.0001018,2]
[420969299,1776826231875,-3532.25,0.00010336,2]
[420969300,1776826231884,-150.0,0.00010355,2]
[420969301,1776826231893,-322.45,0.00010356,2]
[420969302,1776826231902,-299.99,0.00010356,2]
[420969303,1776826231911,-9999.99,0.00010356,2]
[420969304,1776826231920,-8348.60480589,0.00010356,2]
[420969305,1776826231959,-2900.59146821,0.00010356,2]
[420969306,1776826231971,-1027.7737259,0.00010356,2]
[420969307,1776826231980,-150.99,0.00010356,2]
[420969308,1776826231989,-307.46846819,0.00010356,2]
[420969309,1776826232011,-2726.34153181,0.00010356,2]
[420969310,1776826232021,-2000.0,0.00010356,2]
[420969311,1776826232029,-1382.29746433,0.00010356,2]
[420969312,1776826232040,-1322.37552332,0.00010356,2]
[420969313,1776826232059,-493.83701235,0.00010356,2]
[420969316,1776826232070,-303.75744092,0.00010356,2]
[420969319,1776826232088,-765.71157577,0.00010356,2]
[420969322,1776826232105,-554.03098331,0.00010356,2]
[420969324,1776826232119,-200.0,0.00010356,2]
[420969328,1776826232139,-495.35940926,0.00010359,2]
[420969331,1776826232163,-500.0,0.00010359,2]
[420969341,1776826232241,-250.0,9.863e-05,2]
[420969343,1776826232256,-1087.70986208,0.00010359,2]
[420969346,1776826232274,-1148.76047939,0.00010359,2]
[420969383,1776826241591,-250.0,9.863e-05,2]
[420969384,1776826241600,-250.0,9.863e-05,2]
[420969385,1776826241610,-98.26313241,0.00010359,2]
[420969386,1776826241630,-1681.75920405,0.00010359,2]
[420969387,1776826241639,-151.06104443,0.00010603,2]
[420969388,1776826241648,-150.0,0.00010603,2]
[420969389,1776826241657,-150.0,0.00010603,2]
[420969390,1776826241666,-150.0,0.00010603,2]
[420969391,1776826241675,-3062.07743212,0.00010642,2]
[420969392,1776826241694,-717.92256788,0.00010642,2]
[420969393,1776826241703,-331.61543211,0.00010642,2]
[420969394,1776826241719,-2142.38456789,0.00010642,2]
[420969395,1776826241728,-150.0,0.00010672,2]
[420969396,1776826241737,-167.72,0.00010717,2]
[420969397,1776826241746,-150.0,0.00010741,2]
[420969398,1776826241755,-2100.0,0.000108,3]
[420969399,1776826241764,-150.0,0.00010811,2]
[420969400,1776826241773,-174.7,0.00010811,2]
[420969401,1776826241783,-174.7,0.00010811,2]
[420969402,1776826241792,-174.7,0.00010811,2]
[420969403,1776826241801,-174.7,0.00010811,2]
[420969404,1776826241810,-174.7,0.00010811,2]
[420969405,1776826241819,-174.7,0.00010811,2]
[420969406,1776826241828,-6774.83641594,0.00010839,2]
[420969407,1776826241838,-151.0,0.00010858,2]
[420969408,1776826241847,-151.0,0.00010858,2]
[420969409,1776826241857,-150.0,0.0001088,2]
[420969410,1776826241866,-5937.1623,0.00010889,2]
[420969411,1776826241875,-988.19318858,0.00010889,2]
[420969412,1776826241887,-579.78867862,0.00010889,2]
[420969413,1776826241898,-1161.9197328,0.00010889,2]
[420969414,1776826241907,-1430.70621684,0.00010899,2]
[420969415,1776826241919,-1069.29378316,0.00010899,2]
[420969416,1776826241928,-4200.0,0.000109,3]
[420969417,1776826241937,-500.0,0.0001091,2]
[420969418,1776826241946,-500.0,0.0001091,2]
[420969419,1776826241956,-500.0,0.0001091,2]
[420969420,1776826241965,-500.0,0.0001091,2]
[420969421,1776826241974,-500.0,0.0001091,2]
[420969422,1776826241983,-500.0,0.0001091,2]
[420969423,1776826241992,-552.51125373,0.0001091,2]
[420969424,1776826242001,-500.0,0.0001091,2]
[420969425,1776826242010,-364.43151881,0.0001091,2]
[420969426,1776826242020,-150.0,0.00010949,2]
[420969427,1776826242028,-150.0,0.00010959,2]
[420969428,1776826242038,-3240.0,0.00010959,2]
[420969429,1776826242047,-4217.0,0.00010959,2]
[420969430,1776826242056,-1888.0,0.00010959,2]
[420969431,1776826242066,-500.0,0.00010973,2]
[420969432,1776826242075,-500.0,0.00010973,2]
[420969433,1776826242084,-500.0,0.00010973,2]
[420969434,1776826242093,-369.08794478,0.00010973,2]
[420969435,1776826242103,-151.0,0.00010983,2]
[420969436,1776826242112,-151.0,0.00010983,2]
[420969437,1776826242121,-151.0,0.00010983,2]
[420969438,1776826242130,-151.0,0.00010983,2]
[420969439,1776826242140,-151.0,0.00010983,2]
[420969440,1776826242149,-151.0,0.00010983,2]
[420969441,1776826242158,-721.12765535,0.00010983,2]
[420969442,1776826242167,-151.0,0.00010983,2]
[420969443,1776826242177,-151.0,0.00010983,2]
[420969444,1776826242186,-151.0,0.00010983,2]
[420969445,1776826242195,-500.0,0.00010983,2]
[420969446,1776826242204,-209.40437684,0.00010983,2]
[420969447,1776826242214,-33794.06052104,0.00010999,2]
[420969448,1776826242436,-348.88734926,0.00010999,2]
[420969464,1776826243417,-6031.0,0.00010642,2]
[420969465,1776826243426,-27926.39464415,0.00010999,2]
[420969468,1776826254046,296.39987269,0.00011033,30]
[420969483,1776827431883,-169.99,7.753e-05,2]
[420969484,1776827431892,-107.78555734,7.993e-05,2]
[420969485,1776827431985,-142.21444266,7.993e-05,2]
[420969486,1776827431994,-5000.0,8.529e-05,2]
[420969487,1776827432004,-250.0,8.529e-05,2]
[420969488,1776827432013,-315.46954088,8.529e-05,2]
[420969489,1776827432023,-236.8705,8.948e-05,2]
[420969490,1776827432032,-2504.5587,8.95e-05,2]
[420969491,1776827432041,-1603.89,9.416e-05,2]
[420969492,1776827432050,-163.94,9.62e-05,2]
[420969493,1776827432060,-578.20924308,9.929e-05,2]
[420969494,1776827432070,-150.0,9.936e-05,2]
[420969495,1776827432080,-150.0,9.937e-05,2]
[420969496,1776827432090,-9999.99,9.937e-05,2]
[420969497,1776827432099,-299.99,9.937e-05,2]
[420969498,1776827432109,-332.89,9.937e-05,2]
[420969499,1776827432118,-150.99,9.937e-05,2]
[420969500,1776827432127,-999.99,9.937e-05,2]
[420969501,1776827432137,-334.97,0.0001,2]
[420969502,1776827432146,-2638.92,0.0001,2]
[420969503,1776827432159,-1101.92,0.0001,2]
[420969504,1776827432168,-1014.22,0.0001,2]
[420969505,1776827432179,-1014.22,0.0001,2]
[420969506,1776827432188,-1014.22,0.0001,2]
[420969507,1776827432198,-1014.22,0.0001,2]
[420969508,1776827432208,-151.0,0.00010028,2]
[420969509,1776827432217,-151.0,0.00010028,2]
[420969510,1776827432227,-151.0,0.00010028,2]
[420969511,1776827432236,-151.0,0.00010028,2]
[420969512,1776827432246,-151.0,0.00010036,2]
[420969513,1776827432257,-151.0,0.00010036,2]
[420969514,1776827432266,-151.07,0.00010036,2]
[420969515,1776827432276,-151.0,0.00010036,2]
[420969516,1776827432285,-1504.67541631,0.00010064,2]
[420969517,1776827432295,-3058.25386045,0.00010064,2]
[420969518,1776827432305,-238.3110018,0.00010146,2]
[420969519,1776827432314,-200.0,0.00010155,2]
[420969520,1776827432324,-620.79877927,0.00010155,2]
[420969521,1776827432334,-574.98085797,0.00010155,2]
[420969522,1776827432343,-500.0,0.00010155,2]
[420969523,1776827432353,-500.0,0.00010155,2]
[420969524,1776827432363,-500.0,0.00010155,2]
[420969525,1776827432372,-500.0,0.00010155,2]
[420969526,1776827432382,-500.0,0.00010155,2]
[420969527,1776827432391,-315.32318418,0.00010155,2]
[420969528,1776827432401,-500.0,0.00010155,2]
[420969529,1776827432411,-6529.3852,0.00010156,2]
[420969530,1776827432421,-907036.17875012,0.00010156,2]
[420969531,1776827432433,-12287.74442228,0.00010156,2]
[420969532,1776827432475,-532.61726,0.00010156,2]
[420969538,1776827438361,-6387.21742925,0.00010156,2]
[420969541,1776827440304,-677.57382252,0.00010156,2]
[420969542,1776827440315,-2520.83303155,0.00010156,2]
[420969543,1776827440620,-8867.62749107,0.00010156,2]
[420969544,1776827440631,-8947.21879473,0.00010156,2]
[420969545,1776827440642,-8943.78386462,0.00010156,2]
[420969546,1776827440653,-9077.54866152,0.00010156,2]
[420969547,1776827440676,-178303.43113062,0.00010156,2]
[420969577,1776827443355,-151633.39304172,0.00010156,2]
[420969578,1776827443364,-500.0,0.00010173,2]
[420969579,1776827443374,-500.49947838,0.00010173,2]
[420969580,1776827443382,-500.0,0.00010173,2]
[420969581,1776827443392,-160.0,0.00010196,2]
[420969582,1776827443406,-781.2513,0.00010219,2]
[420969583,1776827443416,-163.94,0.00010222,2]
[420969584,1776827443425,-151.0,0.0001025,2]
[420969585,1776827443435,-1428.38747117,0.0001025,2]
[420969586,1776827443444,-151.0,0.0001025,2]
[420969587,1776827443453,-151.0,0.0001025,2]
[420969588,1776827443463,-721.12765535,0.0001025,2]
[420969589,1776827443472,-151.0,0.0001025,2]
[420969590,1776827443482,-151.0,0.0001025,2]
[420969591,1776827443491,-151.0,0.0001025,2]
[420969592,1776827443500,-151.0,0.0001025,2]
[420969593,1776827443510,-151.0,0.0001025,2]
[420969594,1776827443519,-151.0,0.0001025,2]
[420969595,1776827443528,-151.0,0.0001025,2]
[420969596,1776827443538,-151.0,0.0001025,2]
[420969597,1776827443547,-2000.0,0.0001025,2]
[420969598,1776827443557,-2000.0,0.0001025,2]
[420969599,1776827443567,-151.0,0.0001025,2]
[420969600,1776827443578,-151.0,0.0001025,2]
[420969601,1776827443588,-151.0,0.0001025,2]
[420969602,1776827443598,-151.0,0.0001025,2]
[420969603,1776827443609,-151.0,0.0001025,2]
[420969604,1776827443618,-151.0,0.0001025,2]
[420969605,1776827443628,-151.0,0.0001025,2]
[420969606,1776827443638,-151.0,0.0001025,2]
[420969607,1776827443648,-151.0,0.0001025,2]
[420969608,1776827443657,-159.40551329,0.0001025,2]
[420969609,1776827443668,-254.70846608,0.0001025,2]
[420969610,1776827443677,-190.60783339,0.0001025,2]
[420969611,1776827443687,-500.0,0.0001025,2]
[420969612,1776827443706,-279.0,0.00010264,2]
[420969613,1776827443726,-1665.0,0.00010398,2]
[420969614,1776827443740,-150.0,0.0001043,2]
[420969615,1776827443749,-150.0,0.0001043,2]
[420969616,1776827443758,-150.0,0.0001043,2]
[420969617,1776827443767,-299.05404939,0.00010447,2]
[420969618,1776827443778,-150.0,0.00010458,2]
[420969619,1776827443787,-150.0,0.00010487,2]
[420969620,1776827444391,-5215.0,0.000105,5]
[420969621,1776827444401,-150.0,0.00010515,2]
[420969622,1776827444411,-150.0,0.00010543,2]
[420969623,1776827444420,-150.0,0.00010571,2]
[420969624,1776827444430,-150.0,0.000106,2]
[420969625,1776827444443,-2500.0,0.000106,2]
[420969626,1776827444453,-417.96756379,0.00010613,2]
[420969627,1776827444462,-150.0,0.00010628,2]
[420969628,1776827444471,-500.0,0.00010636,2]
[420969629,1776827444481,-150.0,0.00010636,2]
[420969630,1776827444490,-359.56041061,0.00010636,2]
[420969631,1776827444499,-150.0,0.00010636,2]
[420969632,1776827444509,-161.57116075,0.00010636,2]
[420969633,1776827444518,-150.0,0.00010636,2]
[420969634,1776827444528,-500.0,0.00010636,2]
[420969635,1776827444538,-500.0,0.00010636,2]
[420969636,1776827444549,-500.0,0.00010636,2]
[420969637,1776827444558,-500.0,0.00010636,2]
[420969638,1776827444567,-500.0,0.00010636,2]
[420969639,1776827444577,-500.0,0.00010636,2]
[420969640,1776827444587,-500.0,0.00010636,2]
[420969641,1776827444596,-500.0,0.00010636,2]
[420969642,1776827444606,-500.0,0.00010636,2]
[420969643,1776827444616,-500.0,0.00010636,2]
[420969644,1776827444625,-500.0,0.00010636,2]
[420969645,1776827444637,-500.0,0.00010636,2]
[420969646,1776827444646,-500.0,0.00010636,2]
[420969647,1776827444655,-500.0,0.00010636,2]
[420969648,1776827444665,-500.0,0.00010636,2]
[420969649,1776827444675,-500.0,0.00010636,2]
[420969650,1776827444686,-506.81137002,0.00010636,2]
[420969651,1776827444699,-3691.556,0.00010639,2]
[420969652,1776827444708,-1221.966,0.00010642,2]
[420969653,1776827444718,-2474.0,0.00010642,2]
[420969654,1776827444728,-6031.0,0.00010642,2]
[420969655,1776827444739,-150.0,0.00010656,2]
[420969656,1776827444749,-500.0,0.00010673,2]
[420969657,1776827444760,-150.0,0.00010685,2]
[420969658,1776827444770,-5317.19484027,0.0001069,3]
[420969659,1776827444785,-21634.7631658,0.0001069,3]
[420969660,1776827444797,-55233.01055275,0.000107,2]
[420969661,1776827444806,-309792.22628202,0.000107,2]
[420969671,1776827447698,-296.03749998,8.528e-05,2]
[420969672,1776827448304,-2.70906945,8.528e-05,2]
[420969673,1776827448314,-52588.45740378,0.000107,2]
[420969674,1776827448322,-151.0,0.000107,2]
[420969675,1776827448331,-150.0,0.00010713,2]
[420969676,1776827448341,-802.54571224,0.00010741,2]
[420969677,1776827448350,-800.57109369,0.00010741,2]
[420969678,1776827448360,-209.03579245,0.00010741,2]
[420969679,1776827448370,-150.0,0.00010741,2]
[420969680,1776827448379,-150.0,0.00010769,2]
[420969681,1776827448388,-452.31,0.00010776,2]
[420969682,1776827448397,-150.0,0.00010798,2]
[420969683,1776827448406,-1199.1153765,0.00010798,2]
[420969684,1776827448415,-1900.0,0.000108,3]
[420969685,1776827448425,-163.94,0.00010823,2]
[420969686,1776827448435,-150.0,0.00010826,2]
[420969687,1776827448444,-151.0,0.00010838,2]
[420969688,1776827448454,-151.0,0.00010838,2]
[420969689,1776827448464,-151.0,0.00010838,2]
[420969690,1776827448473,-151.0,0.00010838,2]
[420969691,1776827448482,-151.12,0.00010838,2]
[420969692,1776827448492,-151.0,0.00010838,2]
[420969693,1776827448502,-151.0,0.00010838,2]
[420969694,1776827448511,-151.05,0.0001084,2]
[420969695,1776827448520,-151.0,0.0001084,2]
[420969696,1776827448530,-151.0,0.00010844,2]
[420969697,1776827448540,-193.15,0.00010844,2]
[420969698,1776827448549,-151.0,0.00010844,2]
[420969699,1776827448559,-151.0,0.00010844,2]
[420969700,1776827448568,-151.0,0.00010844,2]
[420969701,1776827448577,-151.0,0.00010844,2]
[420969702,1776827448586,-151.06,0.00010844,2]
[420969703,1776827448595,-151.0,0.0001085,2]
[420969704,1776827448605,-151.0,0.0001085,2]
[420969705,1776827448614,-151.0,0.0001085,2]
[420969706,1776827448623,-188.59,0.0001085,2]
[420969707,1776827448633,-151.0,0.0001085,2]
[420969708,1776827448642,-151.0,0.0001085,2]
[420969709,1776827448651,-151.05,0.0001085,2]
[420969710,1776827448660,-151.0,0.0001085,2]
[420969711,1776827448670,-151.0,0.0001085,2]
[420969712,1776827448679,-151.0,0.0001085,2]
[420969713,1776827448689,-151.0,0.0001085,2]
[420969714,1776827448699,-151.0,0.0001085,2]
[420969715,1776827448708,-151.0,0.0001085,2]
[420969716,1776827448717,-151.0,0.0001085,2]
[420969717,1776827448727,-151.0,0.0001085,2]
[420969718,1776827448736,-151.0,0.0001085,2]
[420969719,1776827448746,-151.0,0.0001085,2]
[420969720,1776827448755,-151.0,0.0001085,2]
[420969721,1776827448765,-151.0,0.0001085,2]
[420969722,1776827448774,-151.0,0.0001085,2]
[420969723,1776827448783,-151.0,0.0001085,2]
[420969724,1776827448792,-151.0,0.0001085,2]
[420969725,1776827448802,-151.0,0.0001085,2]
[420969726,1776827448811,-151.0,0.0001085,2]
[420969727,1776827448821,-151.0,0.0001085,2]
[420969728,1776827448830,-151.0,0.0001085,2]
[420969729,1776827448839,-151.0,0.0001085,2]
[420969730,1776827448848,-151.0,0.0001085,2]
[420969731,1776827448857,-151.0,0.0001085,2]
[420969732,1776827448866,-151.0,0.0001085,2]
[420969733,1776827448875,-150.0,0.00010854,2]
[420969734,1776827448885,-151.0,0.00010858,2]
[420969735,1776827448894,-151.3,0.00010858,2]
[420969736,1776827448903,-151.0,0.00010858,2]
[420969737,1776827448912,-151.0,0.00010858,2]
[420969738,1776827448922,-151.0,0.00010858,2]
[420969739,1776827448931,-151.16,0.00010858,2]
[420969740,1776827448940,-151.0,0.00010858,2]
[420969741,1776827448950,-151.0,0.00010858,2]
[420969742,1776827448960,-151.0,0.00010858,2]
[420969743,1776827448970,-151.0,0.00010858,2]
[420969744,1776827448979,-151.0,0.00010858,2]
[420969745,1776827448988,-151.05,0.00010858,2]
[420969746,1776827448997,-151.0,0.00010858,2]
[420969747,1776827449007,-151.0,0.00010858,2]
[420969748,1776827449016,-151.0,0.00010858,2]
[420969749,1776827449026,-151.0,0.00010858,2]
[420969750,1776827449035,-151.0,0.00010858,2]
[420969751,1776827449044,-151.0,0.00010858,2]
[420969752,1776827449053,-151.0,0.00010858,2]
[420969753,1776827449064,-151.0,0.00010858,2]
[420969754,1776827449073,-151.0,0.00010858,2]
[420969755,1776827449083,-151.0,0.00010858,2]
[420969756,1776827449093,-151.0,0.00010858,2]
[420969757,1776827449102,-270.15,0.00010858,2]
[420969758,1776827449112,-150.0,0.00010882,2]
[420969759,1776827449123,-2000.0,0.00010899,2]
[420969760,1776827449133,-2005.0,0.000109,2]
[420969761,1776827449143,-3900.0,0.000109,3]
[420969762,1776827449153,-150.0,0.00010911,2]
[420969763,1776827449163,-255.0,0.0001093,2]
[420969764,1776827449173,-160.0,0.00010938,2]
[420969765,1776827449190,-995.764556,0.00010938,2]
[420969766,1776827449200,-1831.529112,0.00010938,2]
[420969767,1776827449212,-210.364877,0.00010938,2]
[420969768,1776827449223,-160.0,0.00010938,2]
[420969769,1776827449234,-1413.349687,0.00010938,2]
[420969770,1776827449243,-2666.699374,0.00010938,2]
[420969771,1776827449253,-150.0,0.00010939,2]
[420969772,1776827449262,-17867.9155991,0.00010945,2]
[420969773,1776827725415,866.34,7.644e-05,2]
[420969777,1776828393206,1435.0,0.00014,120]
[420969778,1776828449150,2000.0,0.00014,120]
[420969779,1776828503036,2000.0,0.000165,120]
[420969781,1776828634171,-2000.0,8.942e-05,2]
[420969782,1776828634180,-500.0,9.037e-05,2]
[420969783,1776828634190,-250.0,9.043e-05,2]
[420969784,1776828634200,-1200.0,9.048e-05,2]
[420969785,1776828634209,-5600.37,9.049e-05,2]
[420969786,1776828634218,-300.0,9.173e-05,2]
[420969787,1776828634227,-370.43813962,9.173e-05,2]
[420969788,1776828634236,-151.0,9.214e-05,2]
[420969789,1776828634245,-300.0,9.296e-05,2]
[420969790,1776828634254,-300.0,9.296e-05,2]
[420969791,1776828634263,-3342.75,9.298e-05,2]
[420969792,1776828634273,-250.0,9.365e-05,2]
[420969793,1776828634282,-1600.0,9.401e-05,2]
[420969794,1776828634291,-370.4381396,9.564e-05,2]
[420969795,1776828634300,-170.16,9.577e-05,2]
[420969796,1776828634310,-949.9428,9.799e-05,2]
[420969797,1776828634319,-5874.574,9.8e-05,2]
[420969798,1776828634328,-2500.0,9.8e-05,2]
[420969799,1776828634337,-342.29,9.85e-05,2]
[420969800,1776828634347,-501.64017088,9.873e-05,2]
[420969801,1776828634356,-1004.81530383,9.899e-05,2]
[420969802,1776828634365,-1000.0,9.899e-05,2]
[420969803,1776828634375,-250.0,9.94e-05,2]
[420969804,1776828634384,-250.0,9.94e-05,2]
[420969805,1776828634394,-193.64259832,9.954e-05,2]
[420969806,1776828634403,-300.0,9.954e-05,2]
[420969807,1776828634412,-3467.55063717,9.954e-05,2]
[420969808,1776828634421,-370.4381396,9.954e-05,2]
[420969809,1776828634431,-150.0,9.988e-05,2]
[420969810,1776828634440,-208.0,9.989e-05,2]
[420969811,1776828634450,-208.0,9.989e-05,2]
[420969812,1776828634460,-208.0,9.989e-05,2]
[420969813,1776828634470,-208.0,9.989e-05,2]
[420969814,1776828634479,-208.0,9.989e-05,2]
[420969815,1776828634488,-164.27,0.0001,2]
[420969816,1776828634498,-265.06702816,0.0001,2]
[420969817,1776828634507,-152.65,0.00010022,2]
[420969818,1776828634516,-151.0,0.00010022,2]
[420969819,1776828634525,-160.0,0.00010028,2]
[420969820,1776828634535,-151.0,0.00010028,2]
[420969821,1776828634544,-151.0,0.00010028,2]
[420969822,1776828634554,-151.0,0.00010028,2]
[420969823,1776828634563,-151.0,0.00010028,2]
[420969824,1776828634572,-151.0,0.00010036,2]
[420969825,1776828634581,-151.0,0.00010036,2]
[420969826,1776828634591,-2000.0,0.00010056,2]
[420969827,1776828634600,-111326.54482546,0.00010056,2]
[420969828,1776828634613,-28766.51623583,0.00010056,2]
[420969831,1776828638486,-502.0,0.00010055,2]
[420969832,1776828638496,-76979.00474408,0.00010056,2]
[420969836,1776828640900,-3227.38,9.5e-05,2]
[420969837,1776828640910,-19433.22089463,0.00010056,2]
[420969838,1776828640920,-2000.0,0.00010059,2]
[420969839,1776828640929,-265.86882315,0.00010073,2]
[420969840,1776828640939,-500.0,0.00010073,2]
[420969841,1776828640949,-500.0,0.00010073,2]
[420969842,1776828640959,-170.16,0.00010104,2]
[420969843,1776828640968,-153.43,0.00010121,2]
[420969844,1776828640978,-578.20924308,0.00010127,2]
[420969845,1776828640988,-721.12765535,0.00010127,2]
[420969846,1776828640998,-9552.16786547,0.00010127,2]
[420969847,1776828641008,-150.0,0.00010159,2]
[420969848,1776828641017,-150.0,0.00010159,2]
[420969849,1776828641027,-150.00000001,0.00010159,2]
[420969850,1776828641037,-150.65656311,0.00010159,2]
[420969851,1776828641046,-150.0,0.00010159,2]
[420969852,1776828641057,-150.21975716,0.00010159,2]
[420969853,1776828641067,-150.0,0.00010159,2]
[420969854,1776828641076,-150.0,0.00010159,2]
[420969855,1776828641096,-150.0,0.00010159,2]
[420969856,1776828641106,-150.0,0.0001018,2]
[420969857,1776828641116,-9905.5980765,0.00010182,2]
[420969858,1776828641125,-150.0,0.00010201,2]
[420969859,1776828641135,-150.0,0.00010223,2]
[420969860,1776828641144,-420.0,0.00010226,2]
[420969861,1776828641154,-302.0,0.00010226,2]
[420969862,1776828641164,-235.25320131,0.00010237,2]
[420969863,1776828641173,-150.0,0.00010244,2]
[420969864,1776828641182,-150.0,0.00010265,2]
[420969865,1776828641192,-1631.21,0.00010286,2]
[420969866,1776828641202,-8854.45,0.00010286,2]
[420969867,1776828641212,-150.0,0.00010287,2]
[420969868,1776828641222,-150.0,0.00010308,2]
[420969869,1776828641231,-150.0,0.00010329,2]
[420969870,1776828641241,-150.0,0.00010351,2]
[420969871,1776828641250,-150.0,0.00010372,2]
[420969872,1776828641260,-150.0,0.00010393,2]
[420969873,1776828641270,-150.0,0.00010414,2]
[420969874,1776828641279,-150.0,0.00010436,2]
[420969875,1776828641289,-150.0,0.00010441,2]
[420969876,1776828641298,-150.0,0.00010457,2]
[420969877,1776828641308,-150.0,0.00010478,2]
[420969878,1776828641317,-150.0,0.000105,2]
[420969879,1776828641327,-150.0,0.00010521,2]
[420969880,1776828641336,-150.0,0.00010542,2]
[420969881,1776828641806,-150.0,0.00010564,2]
[420969882,1776828641841,-1600.0,0.00010576,2]
[420969883,1776828641850,-150.0,0.00010585,2]
[420969884,1776828641860,-150.0,0.00010606,2]
[420969885,1776828641869,-160.0,0.00010623,2]
[420969886,1776828641879,-433.398277,0.00010623,2]
[420969887,1776828641888,-706.796554,0.00010623,2]
[420969888,1776828641898,-160.0,0.00010623,2]
[420969889,1776828641908,-532.59218,0.00010623,2]
[420969890,1776828641917,-905.18436,0.00010623,2]
[420969891,1776828641927,-150.0,0.00010627,2]
[420969892,1776828641936,-170.16,0.00010631,2]
[420969893,1776828641958,-150.0,0.00010649,2]
[420969894,1776828641968,-150.0,0.0001067,2]
[420969895,1776828641978,-150.0,0.00010691,2]
[420969896,1776828641988,-160.0,0.00010704,2]
[420969897,1776828641998,-499.60758,0.00010704,2]
[420969898,1776828642008,-839.21516,0.00010704,2]
[420969899,1776828642018,-160.0,0.00010704,2]
[420969900,1776828642027,-659.861144,0.00010704,2]
[420969901,1776828642037,-1159.722289,0.00010704,2]
[420969902,1776828642047,-150.0,0.00010713,2]
[420969903,1776828642057,-141379.19,0.00010714,2]
[420969904,1776828642067,-1911.0,0.00010714,2]
[420969905,1776828642077,-151.0,0.00010715,2]
[420969906,1776828642086,-151.205228,0.00010718,2]
[420969907,1776828642096,-6031.0,0.00010718,2]
[420969908,1776828642106,-2474.0,0.00010718,2]
[420969909,1776828642116,-150.0,0.00010723,2]
[420969910,1776828642125,-150.0,0.00010734,2]
[420969911,1776828642135,-5000.0,0.0001074,2]
[420969912,1776828642144,-150.0,0.00010755,2]
[420969913,1776828642154,-150.0,0.00010777,2]
[420969914,1776828642164,-150.0,0.00010798,2]
[420969915,1776828642173,-1700.0,0.000108,3]
[420969916,1776828642183,-150.0,0.00010819,2]
[420969917,1776828642193,-151.0,0.00010838,2]
[420969918,1776828642202,-151.0,0.0001084,2]
[420969919,1776828642212,-85049.70135136,0.0001084,2]
[420969920,1776828642222,-150.0,0.0001084,2]
[420969921,1776828642231,-151.0,0.0001085,2]
[420969922,1776828642241,-152.04,0.0001085,2]
[420969923,1776828642251,-151.0,0.0001085,2]
[420969924,1776828642260,-151.0,0.0001085,2]
[420969925,1776828642270,-151.0,0.0001085,2]
[420969926,1776828642280,-151.0,0.0001085,2]
[420969927,1776828642289,-151.15,0.0001085,2]
[420969928,1776828642299,-151.0,0.0001085,2]
[420969929,1776828642308,-151.0,0.00010858,2]
[420969930,1776828642318,-150.0,0.00010862,2]
[420969931,1776828642327,-150.0,0.00010883,2]
[420969932,1776828642337,-156.76,0.000109,2]